bitfinex/quotes_ETHUSD_20240721
["timestamp","ask_amount","ask_price","bid_price","bid_amount"]
[1721600026863,4.95006135,3535.3,3534.5,3.14744699]
[1721600027082,4.95006135,3535.3,3534.6,0.3147447]
[1721600027509,4.95006135,3535.3,3534.2,2.3269]
[1721600027661,4.95006135,3535.3,3533.0,6.34874265]
[1721600027662,2.82932,3534.5,3533.3,2.2635]
[1721600027861,2.82918,3534.6,3533.3,2.2635]
[1721600028057,2.2778,3534.4,3533.4,0.509372]
[1721600028305,2.2778,3534.4,3533.0,2.83045]
[1721600028306,2.2778,3534.4,3532.8,2.2635]
[1721600028506,2.495,3534.1,3532.8,2.2635]
[1721600028705,2.495,3534.1,3532.3,2.2635]
[1721600028706,2.82988,3533.8,3532.3,2.2635]
[1721600028872,4.95006135,3534.1,3532.4,2.88748749]
[1721600029095,4.95006135,3534.1,3532.8,2.83053]
[1721600029263,4.95006135,3534.1,3532.9,0.283053]
[1721600029469,4.95006135,3534.1,3532.3,2.2635]
[1721600029470,2.82995,3533.7,3532.3,2.2635]
[1721600029685,2.82995,3533.7,3532.3,5.09445]
[1721600029881,2.495,3534.0,3532.6,2.83075]
[1721600030070,2.495,3534.0,3532.6,2.83077]
[1721600030295,1.02745513,3533.9,3532.7,0.283077]
[1721600030602,1.02745513,3533.9,3532.7,3.113747]
[1721600031364,4.95006135,3534.1,3533.1,2.8303]
[1721600031580,3.0,3534.3,3532.7,0.283077]
[1721600031581,5.82941,3534.3,3533.0,2.83043]
[1721600032185,2.82949,3534.2,3533.0,2.83043]
[1721600033307,3.0,3534.3,3532.7,3.113757]
[1721600033308,2.82958,3534.1,3532.8,2.8306]
[1721600033869,5.82943,3534.3,3533.0,2.83044]
[1721600034066,5.82943,3534.3,3533.1,0.566104]
[1721600034312,3.0,3534.3,3533.1,0.566104]
[1721600034481,2.82965,3534.0,3533.1,0.566104]
[1721600034682,2.82965,3534.0,3532.3,2.2635]
[1721600034683,2.82965,3534.0,3532.8,2.83061]
[1721600035400,2.82953,3534.2,3532.8,2.83061]
[1721600035580,3.0,3534.3,3533.0,2.83038]
[1721600036000,3.0,3534.3,3532.8,2.83059]
[1721600036001,5.82942,3534.3,3532.8,2.83059]
[1721600036201,3.0,3534.3,3532.6,2.83077]
[1721600036513,2.82958,3534.1,3532.7,3.56617]
[1721600036725,2.82969,3534.0,3532.7,3.56617]
[1721600036878,2.82969,3534.0,3532.7,6.39685]
[1721600037487,2.82969,3534.0,3532.8,2.83061]
[1721600037906,7.10170614,3534.3,3532.9,2.83046]
[1721600038112,5.82941,3534.3,3533.0,0.922724]
[1721600038305,3.0,3534.3,3533.1,2.83035]
[1721600038476,3.0,3534.3,3533.1,5.13465]
[1721600038677,3.0,3534.3,3533.2,2.83026]
[1721600038878,3.0,3534.3,3533.3,3.4359184]
[1721600039211,3.0,3534.3,3533.3,0.6057284]
[1721600043240,3.0,3534.3,3533.3,3.4359384]
[1721600044245,3.0,3534.3,3533.4,2.83012]
[1721600044633,7.22786135,3534.4,3533.4,2.83012]
[1721600044947,4.95006135,3534.4,3533.5,0.62661284]
[1721600045806,4.95006135,3534.4,3533.5,3.45665284]
[1721600047139,4.95006135,3534.4,3533.6,2.82997]
[1721600047920,4.95006135,3534.4,3533.5,0.62661284]
[1721600048264,4.95006135,3534.4,3533.3,0.6057284]
[1721600048754,4.95006135,3534.4,3533.3,3.4359184]
[1721600049511,2.82955,3534.2,3533.3,0.6057284]
[1721600050153,2.82948,3534.3,3533.3,0.6057284]
[1721600051034,2.495,3534.0,3532.4,4.306787]
[1721600051243,2.82982,3533.8,3532.4,5.83091]
[1721600051410,2.83006,3533.5,3532.4,3.0]
[1721600051610,2.82993,3533.7,3532.5,0.816539]
[1721600051832,2.82993,3533.7,3532.5,3.647379]
[1721600052033,2.495,3534.0,3532.6,2.83076]
[1721600052350,2.495,3534.0,3532.8,2.83055]
[1721600052516,2.82963,3534.1,3532.8,2.83055]
[1721600052716,4.168054,3534.0,3532.8,3.4783349]
[1721600053338,4.168054,3534.0,3532.8,0.6477849]
[1721600053546,2.82974,3533.9,3532.8,0.6477849]
[1721600053870,2.82999,3533.6,3532.8,0.6477849]
[1721600054016,3.833394,3534.0,3532.5,6.647389]
[1721600054017,2.82982,3533.8,3532.5,6.647389]
[1721600054356,3.833394,3534.0,3532.5,3.816539]
[1721600054524,2.82963,3534.1,3532.8,2.83054]
[1721600054914,2.82963,3534.1,3532.9,2.83051]
[1721600055109,3.0,3534.2,3532.5,0.816539]
[1721600055310,10.27441135,3534.4,3533.4,2.83012]
[1721600055311,4.95006135,3534.4,3533.4,2.83012]
[1721600055547,4.95006135,3534.4,3533.2,2.2554]
[1721600055548,4.95006135,3534.4,3533.5,2.82998]
[1721600055810,4.95006135,3534.4,3533.5,3.621538]
[1721600056517,4.95006135,3534.4,3533.5,0.791558]
[1721600056853,4.95006135,3534.4,3533.2,2.2554]
[1721600057055,2.82942,3534.3,3533.2,2.2554]
[1721600057231,4.95006135,3534.4,3533.2,5.08566]
[1721600057739,4.95006135,3534.4,3533.3,2.83015]
[1721600058141,4.95006135,3534.4,3533.5,2.83003]
[1721600058316,4.95006135,3534.4,3533.6,3.112963]
[1721600059157,4.95006135,3534.4,3533.7,2.82988]
[1721600059776,7.95006135,3534.7,3533.7,2.82988]
[1721600060896,7.95006135,3534.7,3534.0,2.82963]
[1721600061059,4.95006135,3535.0,3534.0,2.82963]
[1721600062377,3.0,3534.9,3534.0,2.82963]
[1721600062692,5.82893,3534.9,3533.8,2.4748]
[1721600062896,3.0,3534.9,3533.8,2.4748]
[1721600063050,2.82907,3534.8,3533.8,2.4748]
[1721600063451,2.82907,3534.8,3533.6,0.283003]
[1721600063452,2.82918,3534.6,3533.6,0.283003]
[1721600063766,2.82918,3534.6,3533.1,0.58487494]
[1721600063767,4.9701,3534.8,3533.1,2.83035]
[1721600064074,2.8295,3534.2,3533.0,5.22983]
[1721600064468,2.82938,3534.4,3533.1,2.83037]
[1721600064666,2.82938,3534.4,3533.2,2.83025]
[1721600064863,2.82921,3534.6,3533.4,2.8301]
[1721600065061,4.304731,3534.5,3533.4,3.11311]
[1721600065250,3.0,3534.5,3533.5,2.83003]
[1721600065452,3.0,3534.6,3533.5,2.83003]
[1721600065652,3.0,3534.6,3533.4,0.28301]
[1721600066154,2.82931,3534.5,3533.4,0.28301]
[1721600066357,2.82935,3534.4,3533.4,0.28301]
[1721600066670,5.82924,3534.6,3533.4,0.28301]
[1721600066861,1.113336,3534.5,3533.4,0.28301]
[1721600067465,1.113336,3534.5,3533.4,3.11308]
[1721600067678,2.82919,3534.6,3533.4,0.28301]
[1721600067892,3.0,3534.5,3533.4,0.28301]
[1721600068086,5.82926,3534.5,3533.4,0.28301]
[1721600068359,2.82926,3534.5,3533.4,0.28301]
[1721600068598,2.82926,3534.5,3533.5,0.311321]
[1721600069102,3.0,3534.6,3533.6,2.3759]
[1721600069284,4.95006135,3535.0,3533.7,2.82982]
[1721600069598,4.95006135,3535.0,3533.9,2.82972]
[1721600069792,4.95006135,3535.0,3534.0,0.288631]
[1721600069999,4.95006135,3535.0,3534.1,2.8295]
[1721600070354,4.95006135,3535.0,3534.0,3.118281]
[1721600071176,4.95006135,3535.0,3534.1,2.82956]
[1721600073001,4.95006135,3535.0,3534.0,0.288631]
[1721600073299,0.77788314,3534.9,3533.8,2.82976]
[1721600073509,7.77898135,3535.0,3533.8,2.82976]
[1721600073709,4.95006135,3535.0,3533.9,2.82972]
[1721600074767,4.95006135,3535.0,3533.7,1.47556435]
[1721600074768,4.95006135,3535.0,3534.0,2.82965]
[1721600075710,4.95006135,3535.0,3534.1,2.82954]
[1721600076110,4.95006135,3535.0,3534.3,2.82941]
[1721600076268,4.95006135,3535.0,3534.3,3.395315]
[1721600076465,4.95006135,3535.0,3534.4,2.46838737]
[1721600076711,3.0,3535.4,3534.9,2.82891]
[1721600076712,4.95006135,3535.4,3534.9,2.82891]
[1721600077009,4.95006135,3536.7,3536.1,2.8279]
[1721600077218,14.8005,3537.2,3535.7,5.32329]
[1721600077219,4.95006135,3537.1,3535.7,5.32329]
[1721600077386,7.32648083,3537.1,3535.8,3.601709]
[1721600077589,7.32648083,3537.1,3535.8,3.601649]
[1721600077834,4.95006135,3537.1,3536.1,2.8279]
[1721600077991,4.95006135,3537.1,3535.8,0.773509]
[1721600078194,4.95006135,3537.1,3535.9,2.82813]
[1721600078971,4.95006135,3537.1,3535.8,3.601679]
[1721600079204,2.82727,3537.0,3535.8,0.773509]
[1721600079510,3.88771013,3537.0,3535.8,0.773509]
[1721600079882,2.8275,3536.7,3535.5,5.24025]
[1721600080092,1.06044013,3537.0,3535.5,5.24025]
[1721600080093,2.82741,3536.8,3535.5,2.4118]
[1721600080269,2.82741,3536.8,3535.4,2.82852]
[1721600080473,2.82764,3536.6,3535.3,2.82856]
[1721600080736,2.495,3536.8,3535.0,5.4125]
[1721600081015,5.28495,3536.9,3535.1,3.54125]
[1721600081213,5.28495,3536.9,3535.6,2.82837]
[1721600081416,5.28495,3536.9,3535.1,0.54125]
[1721600081417,2.8276,3536.6,3535.4,2.82852]
[1721600081713,5.28494,3536.9,3535.2,2.82869]
[1721600081916,2.82743,3536.8,3535.5,2.82844]
[1721600082092,4.23970015,3536.8,3535.6,0.582844]
[1721600082609,2.82751,3536.7,3535.6,0.582844]
[1721600082839,2.82761,3536.6,3535.6,0.582844]
[1721600083107,4.23971015,3536.8,3535.6,0.582844]
[1721600083499,4.23971015,3536.8,3535.6,3.411204]
[1721600083700,4.23971015,3536.8,3535.7,0.3411204]
[1721600085688,1.41227015,3536.8,3535.7,0.3411204]
[1721600086031,1.41227015,3536.8,3535.2,2.82863]
[1721600086032,2.82766,3536.5,3535.2,2.82863]
[1721600086233,2.82766,3536.5,3535.3,3.0]
[1721600086523,2.82774,3536.4,3535.3,3.0]
[1721600086917,2.82761,3536.6,3535.3,3.0]
[1721600087114,4.02960802,3536.6,3535.4,0.636988]
[1721600087642,2.82766,3536.5,3535.4,0.636988]
[1721600088901,2.82773,3536.4,3535.4,0.636988]
[1721600089123,2.82773,3536.4,3535.0,2.4125]
[1721600089124,2.495,3536.4,3535.0,2.4125]
[1721600089299,2.82845,3535.5,3534.5,2.4166]
[1721600089495,2.82821,3535.8,3534.5,2.4166]
[1721600089496,2.82862,3535.3,3534.5,2.4166]
[1721600089731,6.64806135,3535.8,3534.0,2.4166]
[1721600089932,2.82899,3534.9,3534.0,2.4166]
[1721600090305,2.82888,3535.0,3534.0,2.4166]
[1721600090516,2.82893,3534.9,3534.0,2.4166]
[1721600091406,2.82881,3535.1,3534.0,2.4166]
[1721600091853,2.82887,3535.0,3534.0,2.4166]
[1721600092145,2.82887,3535.0,3534.0,2.65826]
[1721600092642,2.82897,3534.9,3534.0,2.65826]
[1721600092864,2.82881,3535.1,3534.0,2.4166]
[1721600092865,2.82903,3534.8,3534.0,2.4166]
[1721600093040,2.495,3535.2,3533.2,2.3324]
[1721600093041,3.0,3535.0,3533.2,2.3324]
[1721600093344,2.82924,3534.6,3533.4,2.83012]
[1721600093543,2.82924,3534.6,3533.5,0.516252]
[1721600094117,2.82901,3534.8,3533.5,0.516252]
[1721600094439,2.82901,3534.8,3533.5,3.346292]
[1721600095138,5.495,3535.2,3533.5,0.516252]
[1721600095139,2.8292,3534.6,3533.5,0.516252]
[1721600097030,2.82893,3534.9,3533.5,0.516252]
[1721600097031,2.82901,3534.8,3533.5,0.516252]
[1721600097235,2.82911,3534.7,3533.6,0.6346322]
[1721600098039,2.82919,3534.6,3533.6,0.6346322]
[1721600098243,2.82907,3534.8,3533.6,0.6346322]
[1721600098450,2.82909,3534.7,3533.6,0.6346322]
[1721600098938,2.82918,3534.6,3533.6,0.6346322]
[1721600099147,2.82902,3534.8,3533.6,0.6346322]
[1721600100207,2.82918,3534.6,3533.6,0.6346322]
[1721600100615,2.82905,3534.8,3533.6,0.6346322]
[1721600100954,2.82901,3534.8,3533.7,0.34647522]
[1721600101159,2.82909,3534.7,3533.7,0.34647522]
[1721600101673,2.82886,3535.0,3533.7,0.34647522]
[1721600101811,3.63000614,3535.1,3533.7,0.34647522]
[1721600101812,2.82901,3534.8,3533.7,0.34647522]
[1721600102012,2.82885,3535.0,3533.7,0.34647522]
[1721600102217,2.82885,3535.0,3533.8,2.3826]
[1721600102512,4.04309614,3535.1,3533.8,5.21241]
[1721600102827,7.04310614,3535.1,3533.8,2.3826]
[1721600103028,1.91861675,3535.0,3533.8,2.96732022]
[1721600103233,2.82911,3534.7,3533.8,2.96732022]
[1721600103449,1.91861675,3535.0,3533.8,2.3826]
[1721600103621,7.74747675,3535.0,3533.8,2.3826]
[1721600103933,2.495,3535.2,3533.9,0.0565903]
[1721600104130,4.95006135,3535.3,3534.6,2.4309]
[1721600104338,4.95006135,3535.6,3534.6,2.4309]
[1721600104718,7.77843135,3535.6,3534.6,2.4309]
[1721600104918,2.82856,3535.4,3534.6,2.4309]
[1721600105818,4.95006135,3535.6,3534.6,2.4309]
[1721600106019,2.82855,3535.4,3534.6,2.4309]
[1721600106556,2.82862,3535.3,3534.6,2.4309]
[1721600106945,2.82848,3535.5,3534.6,2.4309]
[1721600107129,2.82856,3535.4,3534.6,2.4309]
[1721600107335,2.82861,3535.3,3534.6,2.4309]
[1721600108363,8.52300749,3535.6,3534.6,2.4309]
[1721600108571,2.8286,3535.4,3534.6,2.4309]
[1721600109132,1.10180075,3535.5,3534.6,2.4309]
[1721600109338,7.77850135,3535.6,3534.6,2.4309]
[1721600111242,4.95006135,3535.6,3534.6,2.4309]
[1721600111676,7.77844135,3535.6,3534.6,2.4309]
[1721600111850,2.82855,3535.4,3534.6,2.4309]
[1721600112254,7.77847135,3535.6,3534.6,2.4309]
[1721600112452,7.77847135,3535.6,3534.6,2.956924]
[1721600112671,4.95006135,3535.6,3534.6,2.956924]
[1721600113263,4.95006135,3535.6,3534.9,2.4767]
[1721600113985,4.95006135,3535.9,3535.4,2.4386]
[1721600114276,5.3225,3536.7,3535.4,2.4386]
[1721600114277,4.95006135,3536.3,3535.4,2.4386]
[1721600114497,4.95006135,3536.3,3535.4,5.26712]
[1721600114651,4.95006135,3536.3,3535.6,2.82836]
[1721600119388,17.36006135,3536.7,3535.6,2.82836]
[1721600119600,4.95006135,3536.7,3535.7,2.82829]
[1721600120595,4.95006135,3536.7,3535.8,2.82821]
[1721600120818,4.95006135,3536.7,3535.9,2.82812]
[1721600121105,4.95006135,3536.7,3536.0,5.11234]
[1721600122760,4.95006135,3537.1,3536.3,2.4866]
[1721600123109,9.47109,3538.2,3536.8,2.82739]
[1721600123110,4.95006135,3537.7,3536.8,2.82739]
[1721600123274,4.95006135,3537.7,3536.7,2.82747]
[1721600123475,4.95006135,3537.7,3536.8,0.282747]
[1721600124499,4.95006135,3537.7,3536.8,3.110127]
[1721600124871,4.95006135,3537.7,3537.0,2.4942]
[1721600125199,4.95006135,3537.7,3537.0,5.32142]
[1721600125705,4.95006135,3537.7,3537.1,2.82716]
[1721600125856,4.95006135,3537.7,3537.2,0.532136]
[1721600126256,4.95006135,3537.7,3537.2,3.359166]
[1721600126500,4.95006135,3537.7,3537.3,2.827]
[1721600126664,4.95006135,3537.7,3537.4,2.82693]
[1721600126859,4.95006135,3537.7,3537.2,3.359216]
[1721600127056,4.95006135,3537.7,3537.0,2.4942]
[1721600127057,4.95006135,3537.7,3537.3,0.5853416]
[1721600127557,4.95006135,3537.7,3537.0,2.4942]
[1721600128157,4.95006135,3538.1,3537.0,2.4942]
[1721600128383,4.95006135,3538.1,3537.0,5.32144]
[1721600128963,4.95006135,3538.1,3537.2,2.82703]
[1721600129320,4.95006135,3538.1,3537.0,2.4942]
[1721600129469,4.95006135,3538.1,3536.8,0.282747]
[1721600129470,4.95006135,3538.1,3537.6,2.82677]
[1721600129662,2.495,3538.9,3537.3,2.827]
[1721600129663,4.95006135,3538.5,3537.4,2.82685]
[1721600129863,4.95006135,3538.5,3537.5,2.82685]
[1721600130264,4.95006135,3538.5,3537.2,2.3414]
[1721600130571,4.95006135,3538.5,3537.1,0.2776947]
[1721600130572,4.95006135,3538.5,3537.5,2.82683]
[1721600130808,4.95006135,3538.5,3537.6,2.818983]
[1721600131106,4.95006135,3538.5,3537.6,2.2536]
[1721600131662,7.77617135,3538.5,3537.6,2.2536]
[1721600132003,2.495,3538.1,3536.8,2.2536]
[1721600132169,2.82668,3537.8,3536.8,2.2536]
[1721600132375,2.82645,3538.0,3536.8,3.043724]
[1721600132687,2.82654,3537.9,3536.8,3.043724]
[1721600133567,5.32137,3538.1,3536.8,5.871094]
[1721600133769,2.495,3538.1,3536.8,3.043724]
[1721600134172,2.82669,3537.7,3536.8,2.2536]
[1721600134378,2.82686,3537.5,3536.8,2.2536]
[1721600134580,2.82669,3537.7,3536.8,2.2536]
[1721600134881,2.82654,3537.9,3536.8,2.2536]
[1721600135103,2.82662,3537.8,3536.8,2.2536]
[1721600135428,0.565307,3537.7,3536.8,2.2536]
[1721600135627,0.565307,3537.7,3535.4,1.47445779]
[1721600135628,2.2924,3537.1,3535.4,2.256]
[1721600135917,2.495,3536.8,3535.4,2.256]
[1721600136076,1.698,3537.0,3534.9,2.256]
[1721600136077,2.495,3535.9,3534.9,2.256]
[1721600136280,2.495,3535.9,3534.9,5.08492]
[1721600136476,7.77799135,3536.2,3535.0,0.508492]
[1721600137278,2.82799,3536.1,3535.0,0.508492]
[1721600137478,2.82799,3536.1,3534.9,2.256]
[1721600137710,4.95006135,3536.2,3534.1,2.256]
[1721600137711,2.495,3535.9,3534.1,2.256]
[1721600137928,2.82846,3535.5,3534.2,2.82946]
[1721600138228,2.82821,3535.8,3534.1,2.256]
[1721600138229,2.495,3535.1,3534.1,2.256]
[1721600138374,2.82887,3535.0,3534.1,2.256]
[1721600138905,2.495,3535.1,3534.1,2.256]
[1721600139071,7.77866135,3535.4,3534.1,2.256]
[1721600139278,2.82863,3535.3,3534.1,2.256]
[1721600139509,4.95006135,3535.4,3534.2,0.508563]
[1721600139728,7.77861135,3535.4,3534.2,0.508563]
[1721600140688,2.82863,3535.3,3534.2,0.508563]
[1721600141099,2.82871,3535.2,3534.1,2.256]
[1721600142232,7.77861135,3535.4,3534.1,2.256]
[1721600142513,4.95006135,3535.4,3534.1,2.256]
[1721600142723,4.95006135,3535.4,3534.4,2.82926]
[1721600142904,4.95006135,3535.8,3534.6,2.82916]
[1721600143079,4.95006135,3535.8,3534.7,0.282916]
[1721600143486,4.95006135,3535.8,3534.3,3.0]
[1721600143683,2.82831,3535.7,3534.3,5.82938]
[1721600143933,4.95006135,3535.8,3534.3,5.82938]
[1721600144236,7.77828135,3535.8,3534.3,5.82938]
[1721600144517,4.95006135,3535.8,3534.5,2.82925]
[1721600144725,4.95006135,3535.8,3534.6,0.582925]
[1721600144877,7.77832135,3535.8,3534.6,0.582925]
[1721600145076,4.95006135,3535.8,3534.6,0.582925]
[1721600145316,4.95006135,3535.8,3534.3,3.0]
[1721600145540,2.82844,3535.6,3534.3,2.82939]
[1721600146121,7.77833135,3535.8,3534.4,2.82932]
[1721600146423,4.95006135,3535.8,3534.6,2.82913]
[1721600146620,4.95006135,3535.8,3534.7,0.565845]
[1721600146849,2.8284,3535.6,3534.7,0.565845]
[1721600147048,2.8284,3535.6,3534.3,3.0]
[1721600147259,2.8284,3535.6,3534.3,5.8294]
[1721600147413,4.95006135,3535.8,3534.3,3.0]
[1721600147614,7.77828135,3535.8,3534.4,2.8293]
[1721600148621,7.77828135,3535.8,3534.3,2.82939]
[1721600148806,2.82848,3535.5,3534.4,3.508539]
[1721600150424,2.82832,3535.7,3534.4,3.508539]
[1721600150611,4.95006135,3535.8,3534.5,2.82924]
[1721600150808,4.95006135,3535.8,3534.4,3.508539]
[1721600151051,7.77827135,3535.8,3534.5,2.82925]
[1721600151358,7.77827135,3535.8,3534.6,0.6337789]
[1721600151560,2.82836,3535.7,3534.6,0.6337789]
[1721600152626,2.82838,3535.6,3534.6,0.6337789]
[1721600152969,2.82854,3535.4,3534.3,3.0]
[1721600153113,2.495,3535.5,3534.1,2.256]
[1721600153114,2.82878,3535.1,3534.1,2.256]
[1721600153311,2.82878,3535.1,3533.6,2.4908]
[1721600153312,2.82909,3534.7,3533.6,2.4908]
[1721600153536,2.82909,3534.7,3533.7,0.815078]
[1721600153752,2.495,3535.1,3533.7,0.815078]
[1721600153934,2.495,3535.1,3533.6,2.4908]
[1721600153935,2.495,3534.7,3533.6,2.4908]
[1721600154115,2.82909,3534.7,3533.6,2.4908]
[1721600154316,2.495,3535.1,3532.7,2.06049719]
[1721600154317,3.9918,3534.6,3532.7,2.06049719]
[1721600154548,2.495,3533.5,3532.6,2.4392]
[1721600154718,5.32508,3533.5,3532.6,2.68312]
[1721600155214,7.77987135,3533.8,3532.6,2.68312]
[1721600155215,2.83004,3533.6,3532.6,2.68312]
[1721600155633,4.95006135,3533.8,3532.9,2.83051]
[1721600155834,4.95006135,3533.8,3532.7,2.83068]
[1721600156521,4.95006135,3533.8,3532.6,5.51387]
[1721600156720,4.95006135,3533.8,3532.7,3.851387]
[1721600157058,2.8299,3533.7,3532.7,3.851387]
[1721600157619,4.95006135,3533.8,3532.7,3.851387]
[1721600157855,4.95006135,3533.8,3532.7,6.682077]
[1721600158095,4.95006135,3533.8,3533.0,2.83043]
[1721600158230,4.95006135,3533.8,3533.1,0.566103]
[1721600158433,7.77963135,3534.1,3533.1,0.566103]
[1721600158665,5.3248,3533.9,3532.7,3.851387]
[1721600158965,4.95006135,3534.1,3532.7,6.682077]
[1721600159339,4.95006135,3534.1,3532.8,2.83054]
[1721600159528,2.82975,3533.9,3532.7,3.851387]
[1721600159739,2.82988,3533.8,3532.7,3.851387]
[1721600159942,2.8299,3533.7,3532.7,3.851387]
[1721600160157,2.8299,3533.7,3532.8,0.6534507]
[1721600160461,2.495,3533.9,3532.8,0.6534507]
[1721600160618,2.82965,3534.0,3532.8,0.6534507]
[1721600161233,2.82989,3533.7,3532.8,0.6534507]
[1721600161774,2.82989,3533.7,3532.7,3.0]
[1721600161775,5.32508,3533.5,3532.6,2.4392]
[1721600162069,2.83013,3533.4,3532.6,2.4392]
[1721600162252,2.495,3533.5,3532.6,2.4392]
[1721600162450,2.83014,3533.4,3532.6,2.4392]
[1721600162823,3.645642,3533.4,3532.1,5.11925]
[1721600163220,4.95006135,3533.7,3532.1,2.2881]
[1721600163460,4.95006135,3533.7,3532.7,2.2881]
[1721600163644,4.95006135,3533.7,3532.9,2.83047]
[1721600163964,4.95006135,3533.7,3532.7,5.11878]
[1721600164379,4.95006135,3533.7,3532.7,2.2881]
[1721600164559,7.77997135,3533.7,3532.7,2.799994]
[1721600164736,2.83007,3533.5,3532.7,2.799994]
[1721600164940,7.77997135,3533.7,3532.7,2.2881]
[1721600165166,7.77997135,3533.7,3532.2,3.0]
[1721600165167,2.83013,3533.4,3532.4,3.0]
[1721600165557,2.83001,3533.6,3532.3,3.0]
[1721600165764,2.83001,3533.6,3532.4,2.83093]
[1721600165964,2.83001,3533.6,3532.5,4.095004]
[1721600166168,2.83008,3533.5,3532.5,4.095004]
[1721600166346,2.83008,3533.5,3532.5,1.095004]
[1721600167081,4.95006135,3533.7,3532.5,1.095004]
[1721600167281,4.95006135,3533.7,3531.6,5.8706508]
[1721600167282,2.495,3532.7,3531.7,2.321]
[1721600167501,2.495,3532.7,3531.6,0.2090808]
[1721600167642,5.32573,3532.7,3531.6,0.2090808]
[1721600167843,2.495,3532.7,3531.6,0.2090808]
[1721600168087,2.83064,3532.8,3531.7,0.30407308]
[1721600168304,7.78051135,3533.0,3531.7,0.30407308]
[1721600168305,2.83069,3532.7,3531.7,0.30407308]
[1721600168510,4.95006135,3533.0,3531.7,3.13555308]
[1721600168815,3.0,3532.9,3531.7,3.13555308]
[1721600168994,1.04450614,3532.8,3531.7,3.13555308]
[1721600170013,7.78057135,3533.0,3531.7,3.13555308]
[1721600170014,4.95006135,3533.0,3532.1,2.83116]
[1721600170360,4.95006135,3533.0,3531.9,2.83133]
[1721600170584,4.95006135,3533.0,3532.0,3.0]
[1721600170805,4.95006135,3533.0,3532.0,2.83124]
[1721600170969,4.95006135,3533.0,3532.1,0.815224]
[1721600171309,4.95006135,3533.0,3532.5,2.83084]
[1721600171505,4.95006135,3533.4,3532.4,2.83093]
[1721600171714,4.95006135,3533.4,3532.1,3.646394]
[1721600172001,2.83039,3533.1,3532.1,0.815224]
[1721600172202,2.495,3533.2,3531.8,2.321]
[1721600172203,2.83047,3533.0,3531.8,2.321]
[1721600172407,2.495,3533.2,3531.8,2.321]
[1721600172408,2.83041,3533.1,3531.8,5.15234]
[1721600172709,5.32529,3533.2,3532.1,2.83111]
[1721600172710,2.495,3533.2,3532.1,2.83111]
[1721600173285,2.495,3533.2,3532.2,2.83109]
[1721600173501,4.15301839,3533.2,3532.0,2.83122]
[1721600173704,4.15301839,3533.2,3532.1,2.83115]
[1721600174208,4.15301839,3533.2,3532.2,2.83108]
[1721600174529,4.15301839,3533.2,3532.0,2.83125]
[1721600174889,4.15301839,3533.2,3532.1,2.83115]
[1721600175092,4.15301839,3533.2,3531.8,2.321]
[1721600175294,5.3818,3533.1,3531.8,2.321]
[1721600175804,5.3818,3533.1,3532.0,2.83124]
[1721600176124,5.3818,3533.1,3531.9,2.83133]
[1721600176491,5.3818,3533.1,3532.0,2.83118]
[1721600176691,5.3818,3533.1,3532.1,0.798359]
[1721600176891,4.95006135,3533.4,3532.1,3.629509]
[1721600177090,4.95006135,3533.4,3532.4,2.83092]
[1721600177315,4.95006135,3533.4,3532.7,5.15167]
[1721600177626,4.95006135,3533.4,3532.8,2.83061]
[1721600177815,4.95006135,3533.4,3532.9,0.515161]
[1721600178025,3.90047939,3534.3,3533.0,0.05660198]
[1721600178187,3.90047939,3534.6,3532.8,0.05659571]
[1721600178386,3.90047939,3534.6,3533.9,2.82972]
[1721600178690,2.495,3535.2,3534.0,2.82962]
[1721600178691,3.90047939,3534.9,3534.0,2.82962]
[1721600178888,3.90047939,3534.9,3533.9,2.321]
[1721600179191,3.90047939,3534.9,3533.9,2.836081]
[1721600180248,3.90047939,3534.9,3533.9,0.515081]
[1721600180528,2.82932,3534.5,3533.4,2.321]
[1721600181286,2.82909,3534.7,3533.4,2.321]
[1721600181484,3.90047939,3534.9,3533.6,2.82994]
[1721600181683,3.90047939,3534.9,3533.4,2.321]
[1721600181684,3.90047939,3534.9,3533.7,2.82986]
[1721600181929,3.90047939,3534.9,3533.8,0.282986]
[1721600182124,2.82934,3534.4,3533.4,2.321]
[1721600182330,3.324,3534.6,3532.9,0.87899544]
[1721600182331,2.82972,3534.0,3532.9,2.3304]
[1721600182530,2.82972,3534.0,3532.5,4.30655876]
[1721600182531,2.82967,3534.0,3532.5,4.30655876]
[1721600182701,6.15362,3534.1,3532.8,2.8306]
[1721600182891,6.15362,3534.1,3532.6,2.83076]
[1721600182892,3.324,3534.1,3532.6,2.83076]
[1721600183093,4.49940394,3534.1,3532.7,1.84168749]
[1721600183324,2.83011,3533.5,3532.4,2.3304]
[1721600183646,5.25,3534.0,3532.6,2.83077]
[1721600183647,3.0,3534.0,3532.6,2.83077]
[1721600183958,3.0,3534.0,3532.8,2.83061]
[1721600184642,5.82966,3534.0,3532.8,2.83061]
[1721600185223,3.0,3534.0,3532.8,2.83061]
[1721600185449,1.26053033,3534.0,3532.8,3.396748]
[1721600185672,1.26053033,3534.0,3532.9,2.83053]
[1721600185834,4.26053033,3534.0,3532.9,2.83053]
[1721600186675,3.0,3534.0,3532.8,0.566138]
[1721600187005,2.82973,3534.0,3532.5,2.83085]
[1721600187258,3.0,3533.9,3532.8,2.83061]
[1721600187457,7.00500394,3534.1,3532.8,2.83061]
[1721600187666,2.82968,3534.0,3532.6,2.83077]
[1721600187960,2.82991,3533.7,3532.4,2.3304]
[1721600188284,2.82999,3533.6,3532.5,0.57462549]
[1721600188673,2.82977,3533.9,3532.5,0.57462549]
[1721600189472,2.8299,3533.7,3532.5,0.57462549]
[1721600189675,2.8299,3533.7,3532.6,0.57360055]
[1721600189963,2.83003,3533.6,3532.6,0.57360055]
[1721600190573,2.83025,3533.3,3532.4,2.3304]